Workbook

Sheet Aide

Sheet TCD
A3: Row Labels | B3: Sum of Quantité | C3: Sum of Palette
A4: 0 | B4: 0 | C4: 0
A5: 0 | B5: 0 | C5: 0
A6: (blank)
A7: // | B7: 0 | C7: 8
A8: // | B8: 0 | C8: 8
A9: abricot 1 kg | B9: 272 | C9: 6
A10: 250 | B10: 200 | C10: 4
A11: 252 | B11: 72 | C11: 2
A12: biscottes | B12: 480 | C12: 10
A13: 284 | B13: 240 | C13: 5
A14: 289 | B14: 96 | C14: 2
A15: 291 | B15: 48 | C15: 1
A16: 314 | B16: 96 | C16: 2
A17: bouchée | B17: 2361 | C17: 1
A18: 312 | B18: 46 | C18: 1
A19: 317 | B19: 2315 | C19: 0
A20: café | B20: 579 | C20: 12
A21: 189 | B21: 100 | C21: 2
A22: 251 | B22: 479 | C22: 10
A23: carotte rappée | B23: 240 | C23: 3
A24: 328 | B24: 160 | C24: 2
A25: 333 | B25: 80 | C25: 1
A26: cassoulet | B26: 350 | C26: 5
A27: 224 | B27: 350 | C27: 5
A28: céleri | B28: 1320 | C28: 24
A29: 260 | B29: 55 | C29: 1
A30: 336 | B30: 385 | C30: 7
A31: 365 | B31: 880 | C31: 16
A32: // | B32: 0 | C32: 0
A33: chocolat | B33: 0 | C33: 0
A34: // | B34: 0 | C34: 0
A35: farine | B35: 150 | C35: 3
A36: 261 | B36: 100 | C36: 2
A37: 297 | B37: 50 | C37: 1
A38: frite | B38: 2275 | C38: 16
A39: 120 | B39: 80 | C39: 1
A40: 256 | B40: 1200 | C40: 15
A41: 281 | B41: 995 | C41: 0
A42: // | B42: 0 | C42: 0
A43: haricot blanc x 2 | B43: 2240 | C43: 16
A44: 277 | B44: 140 | C44: 1
A45: 295 | B45: 2100 | C45: 15
A46: haricot vert x 2 | B46: 8100 | C46: 15
A47: 326 | B47: 6480 | C47: 12
A48: 332 | B48: 1620 | C48: 3
A49: jambon | B49: 1690 | C49: 31
A50: 295 | B50: 540 | C50: 16
A51: 297 | B51: 1120 | C51: 14
A52: 331 | B52: 30 | C52: 1
A53: lait x 1 | B53: 96 | C53: 2
A54: 263 | B54: 48 | C54: 1
A55: 345 | B55: 48 | C55: 1
A56: lait x 6 | B56: 832 | C56: 16
A57: 275 | B57: 832 | C57: 16
A58: lardons 500g | B58: 960 | C58: 12
A59: 268 | B59: 960 | C59: 12
A60: macédoine 1 kg | B60: 4370 | C60: 55
A61: 183 | B61: 80 | C61: 1
A62: 275 | B62: 3330 | C62: 42
A63: 306 | B63: 960 | C63: 12
A64: pain | B64: 3877 | C64: 56
A65: 224 | B65: 1567 | C65: 23
A66: 238 | B66: 70 | C66: 1
A67: 324 | B67: 2240 | C67: 32
A68: // | B68: 0 | C68: 0
A69: pain de mie | B69: 7964 | C69: 81
A70: 193 | B70: 72 | C70: 1
A71: 255 | B71: 792 | C71: 11
A72: 267 | B72: 72 | C72: 1
A73: 315 | B73: 216 | C73: 3
A74: 327 | B74: 2543 | C74: 37
A75: 330 | B75: 2016 | C75: 28
A76: 335 | B76: 2253 | C76: 0
A77: // | B77: 0 | C77: 0
A78: pêche 1kg | B78: 480 | C78: 23
A79: 306 | B79: 420 | C79: 7
A80: 365 | B80: 60 | C80: 16
A81: // | B81: 0 | C81: 0
A82: petits pois x 2 | B82: 560 | C82: 36
A83: 233 | B83: 480 | C83: 12
A84: 289 | B84: 40 | C84: 12
A85: 307 | B85: 40 | C85: 12
A86: // | B86: 0 | C86: 0
A87: poire 1 kg | B87: 471 | C87: 0
A88: 320 | B88: 471 | C88: 0
A89: salade verte | B89: 480 | C89: 6
A90: 361 | B90: 480 | C90: 6
A91: salami | B91: 2023 | C91: 26
A92: 362 | B92: 2023 | C92: 26
A93: sardine x 2 | B93: 5940 | C93: 11
A94: 326 | B94: 3780 | C94: 7
A95: 328 | B95: 2160 | C95: 4
A96: saucisse fumée | B96: 180 | C96: 3
A97: 284 | B97: 180 | C97: 3
A98: saucisson | B98: 4380 | C98: 50
A99: 296 | B99: 1390 | C99: 16
A100: 321 | B100: 2990 | C100: 34
A101: // | B101: 0 | C101: 0
A102: saucisson ail | B102: 6846 | C102: 87
A103: 326 | B103: 2046 | C103: 27
A104: 327 | B104: 1920 | C104: 24
A105: 340 | B105: 960 | C105: 12
A106: 345 | B106: 1920 | C106: 24
A107: sucre | B107: 336 | C107: 8
A108: 364 | B108: 336 | C108: 8
A109: // | B109: 0 | C109: 0
A110: thon | B110: 20 | C110: 0
A111: 306 | B111: 10 | C111: 0
A112: 321 | B112: 10 | C112: 0
A113: (blank)
A114: (blank)
A115: Grand Total | B115: 59872 | C115: 622

Sheet stock
A1: EMPL. | B1: Référence | C1: Produit | D1: Code | E1: Date | F1: Palette | G1: Quantité | I1: ALERTE PEREMPTION | J1: JOURS RESTANTS | K1: 90 | L1: 30 | M1: 0 | N1: 100 | P1: 268 | Q1: 97 | R1: 365 | T1: =TODAY() -> 2016-09-02
A2: A.1.0 | B2: 3 | C2: biscottes | D2: 314 | E2: 2017-01-09 | F2: 1 | G2: 48 | H2: =E2-T1 -> 129 | I2: =IF(K2=90,"ATTENTION MOINS DE 3 MOIS",IF(L2=30,"ATTENTION MOINS DE 30 JOURS",IF(M2=0,"PERIME!!!","OK"))) -> OK | J2: =E2-T1 -> 129 | K2: =IF(AND(J2<=90,J2>30),90,"") ->  | L2: =IF(AND(J2<=30,J2>0),30,"") ->  | M2: =IF(J2<=0,0,"") ->  | N2: =IF(J2>90,"n","") -> n | U2: Agrilait sel (Coralis) | V2: =COUNTIF(C2:C372,"*Agrilait sel*") -> 0
A3: A.1.1 | B3: 3 | C3: biscottes | D3: 314 | E3: 2017-01-09 | F3: 1 | G3: 48 | H3: =E3-T1 -> 129 | I3: OK | J3: =E3-T1 -> 129 | K3: =IF(AND(J3<=90,J3>30),90,"") ->  | L3: =IF(AND(J3<=30,J3>0),30,"") ->  | M3: =IF(J3<=0,0,"b") -> b | N3: =IF(J3>90,"n","") -> n | U3: // | V3: =COUNTIF(C2:C372,"*//*") -> 97
A4: A.1.2 | B4: 28 | C4: céleri | D4: 260 | E4: 2016-11-16 | F4: 1 | G4: 55 | H4: =E4-T1 -> 75 | I4: ATTENTION MOINS DE 3 MOIS | J4: =E4-T1 -> 75 | K4: 90 | M4: =IF(J4<=0,0,"b") -> b | U4: AOP Ovale dx lotx2 | V4: =COUNTIF(C2:C372,"*AOP ovale*") -> 0
A5: A.1.3 | B5: 20 | C5: farine | D5: 261 | E5: 2016-11-17 | F5: 1 | G5: 50 | H5: =E5-T1 -> 76 | I5: ATTENTION MOINS DE 3 MOIS | J5: =E5-T1 -> 76 | K5: 90 | M5: b | U5: AOP dx 5kg | V5: =COUNTIF(C2:C372,"*AOP dx 5kg*") -> 0
A6: A.2.0 | B6: 20 | C6: farine | D6: 261 | E6: 2016-11-17 | F6: 1 | G6: 50 | H6: =E6-T1 -> 76 | I6: ATTENTION MOINS DE 3 MOIS | J6: =E6-T1 -> 76 | K6: 90 | L6: =IF(AND(J6<=30,J6>0),30,"") ->  | M6: =IF(J6<=0,0,20) -> 20 | U6: AOP dx 10kg | V6: =COUNTIF(C2:C372,"*AOP dx 10kg") -> 0
A7: A.2.1 | B7: // | C7: // | D7: // | E7: // | F7: // | G7: 0 | H7: =E7-T1 ->  | J7: =E7-T1 ->  | U7: Bretagne sel (Coralis) | V7: =COUNTIF(C2:C372,"*Bretagne sel (Coralis)") -> 0
A8: A.2.2 | B8: // | C8: // | D8: // | E8: // | F8: // | G8: 0 | H8: =E8-T1 ->  | J8: =E8-T1 ->  | U8: Crème 15 % | V8: =COUNTIF(C2:C372,"*Crème 15 %") -> 0
A9: A.2.3 | B9: 20 | C9: farine | D9: 297 | E9: 2016-12-23 | F9: 1 | G9: 50 | H9: =E9-T1 -> 112 | I9: OK | J9: =E9-T1 -> 112 | M9: b | N9: n | U9: Crème 30 % | V9: =COUNTIF(C2:C372,"*Crème 30 %") -> 0
A10: A.3.0 | B10: // | C10: // | D10: // | E10: // | F10: // | G10: 0 | H10: =E10-T1 ->  | J10: =E10-T1 ->  | U10: Crème U | V10: =COUNTIF(C2:C372,"*Crème U") -> 0
A11: A.3.1 | B11: // | C11: // | D11: // | E11: // | F11: // | G11: 0 | H11: =E11-T1 ->  | J11: =E11-T1 ->  | U11: Croisés dx | V11: =COUNTIF(C2:C372,"*Croisés dx*") -> 0
A12: A.3.2 | B12: 32 | C12: cassoulet | D12: 224 | E12: 2016-10-11 | F12: 1 | G12: 70 | H12: =E12-T1 -> 39 | I12: ATTENTION MOINS DE 3 MOIS | J12: =E12-T1 -> 39 | K12: 90 | M12: b | U12: Croisés sel | V12: =COUNTIF(C2:C372,"*Croisés sel*") -> 0
A13: A.3.3 | B13: 32 | C13: cassoulet | D13: 224 | E13: 2016-10-11 | F13: 1 | G13: 70 | H13: =E13-T1 -> 39 | I13: ATTENTION MOINS DE 3 MOIS | J13: =E13-T1 -> 39 | K13: 90 | M13: b | U13: Cube | V13: =COUNTIF(C2:C372,"*Cubes*") -> 0
A14: A.4.0 | B14: 32 | C14: cassoulet | D14: 224 | E14: 2016-10-11 | F14: 1 | G14: 70 | H14: =E14-T1 -> 39 | I14: ATTENTION MOINS DE 3 MOIS | J14: =E14-T1 -> 39 | K14: =IF(AND(J14<=90,J14>30),90,"") -> 90 | L14: =IF(AND(J14<=30,J14>0),30,"") ->  | M14: =IF(J14<=0,0,"b") -> b | N14: =IF(J14>90,"n","") ->  | U14: FONTE | V14: =COUNTIF(C2:C372,"*Fonte*") -> 0
A15: A.4.1 | B15: 32 | C15: cassoulet | D15: 224 | E15: 2016-10-11 | F15: 1 | G15: 70 | H15: =E15-T1 -> 39 | I15: ATTENTION MOINS DE 3 MOIS | J15: =E15-T1 -> 39 | K15: 90 | M15: b | U15: Lot de deux dx | V15: =COUNTIF(C2:C372,"*Lot de deux dx*") -> 0
A16: A.4.2 | B16: 32 | C16: cassoulet | D16: 224 | E16: 2016-10-11 | F16: 1 | G16: 70 | H16: =E16-T1 -> 39 | I16: ATTENTION MOINS DE 3 MOIS | J16: =E16-T1 -> 39 | K16: 90 | M16: b | U16: Lot de deux sel | V16: =COUNTIF(C2:C372,"*Lot de deux sel*") -> 0
A17: A.4.3 | B17: // | C17: // | D17: // | E17: // | F17: // | G17: 0 | H17: =E17-T1 ->  | J17: =E17-T1 ->  | U17: Merci chef dx | V17: =COUNTIF(C2:C372,"*Merci chef dx*") -> 0
A18: A.5.0 | B18: // | C18: // | D18: // | E18: // | F18: // | G18: 0 | H18: =E18-T1 ->  | J18: =E18-T1 ->  | U18: Pain box bio dx | V18: =COUNTIF(C2:C372,"*Pain box bio dx*") -> 0
A19: A.5.1 | B19: // | C19: // | D19: // | E19: // | F19: // | G19: 0 | H19: =E19-T1 ->  | J19: =E19-T1 ->  | U19: Pain box dx | V19: =COUNTIF(C2:C372,"*Pain box dx*") -> 0
A20: A.5.2 | B20: 31 | C20: abricot 1 kg | D20: 250 | E20: 2016-11-06 | F20: 1 | G20: 50 | H20: =E20-T1 -> 65 | I20: ATTENTION MOINS DE 3 MOIS | J20: =E20-T1 -> 65 | K20: 90 | M20: b | U20: Pain Nizo (container) | V20: =COUNTIF(C2:C372,"*Pain nizo (container)*") -> 0
A21: A.5.3 | B21: 31 | C21: abricot 1 kg | D21: 250 | E21: 2016-11-06 | F21: 1 | G21: 50 | H21: =E21-T1 -> 65 | I21: ATTENTION MOINS DE 3 MOIS | J21: =E21-T1 -> 65 | K21: 90 | M21: b | U21: Paturage dx | V21: =COUNTIF(C2:C372,"*Paturage dx*") -> 0
A22: A.6.0 | B22: 31 | C22: abricot 1 kg | D22: 250 | E22: 2016-11-06 | F22: 1 | G22: 50 | H22: =E22-T1 -> 65 | I22: ATTENTION MOINS DE 3 MOIS | J22: =E22-T1 -> 65 | K22: 90 | M22: b | U22: Paturage dx (Coralis) | V22: =COUNTIF(C2:C372,"*Paturage dx (Coralis)*") -> 0
A23: A.6.1 | B23: 31 | C23: abricot 1 kg | D23: 250 | E23: 2016-11-06 | F23: 1 | G23: 50 | H23: =E23-T1 -> 65 | I23: ATTENTION MOINS DE 3 MOIS | J23: =E23-T1 -> 65 | K23: 90 | M23: b | U23: Paturage sel | V23: =COUNTIF(C2:C372,"*Paturage sel*") -> 0
A24: A.6.2 | B24: 31 | C24: abricot 1 kg | D24: 252 | E24: 2016-11-08 | F24: 1 | G24: 22 | H24: =E24-T1 -> 67 | I24: ATTENTION MOINS DE 3 MOIS | J24: =E24-T1 -> 67 | K24: 90 | M24: b | U24: Paturage sel (Coralis) | V24: =COUNTIF(C2:C372,"*Paturage sel (Coralis)*") -> 0
A25: A.6.3 | B25: 31 | C25: abricot 1 kg | D25: 252 | E25: 2016-11-08 | F25: 1 | G25: 50 | H25: =E25-T1 -> 67 | I25: ATTENTION MOINS DE 3 MOIS | J25: =E25-T1 -> 67 | K25: =IF(AND(J25<=90,J25>30),90,"") -> 90 | L25: =IF(AND(J25<=30,J25>0),30,"") ->  | M25: =IF(J25<=0,0,"b") -> b | N25: =IF(J25>90,"n","") ->  | U25: Savenay dx | V25: =COUNTIF(C2:C372,"*Savenay dx*") -> 0
A26: A.7.0 | B26: 22 | C26: café | D26: 251 | E26: 2016-11-07 | F26: 1 | G26: 50 | H26: =E26-T1 -> 66 | I26: ATTENTION MOINS DE 3 MOIS | J26: =E26-T1 -> 66 | K26: 90 | M26: b | U26: Savenay sel | V26: =COUNTIF(C2:C372,"*Savenay sel*") -> 0
A27: A.7.1 | B27: 22 | C27: café | D27: 251 | E27: 2016-11-07 | F27: 1 | G27: 50 | H27: =E27-T1 -> 66 | I27: ATTENTION MOINS DE 3 MOIS | J27: =E27-T1 -> 66 | K27: 90 | M27: b | U27: sel de mer 10kg | V27: =COUNTIF(C2:C372,"*Sel de mer 10kg*") -> 0
A28: A.7.2 | B28: 22 | C28: café | D28: 189 | E28: 2016-09-07 | F28: 1 | G28: 50 | H28: =E28-T1 -> 5 | I28: ATTENTION MOINS DE 30 JOURS | J28: =E28-T1 -> 5 | L28: 30 | M28: b | U28: sel de mer 12kg | V28: =COUNTIF(C2:C372,"*Sel de mer 12kg*") -> 0
A29: A.7.3 | B29: 22 | C29: café | D29: 251 | E29: 2016-11-07 | F29: 1 | G29: 50 | H29: =E29-T1 -> 66 | I29: ATTENTION MOINS DE 3 MOIS | J29: =E29-T1 -> 66 | K29: 90 | M29: b | U29: sel de mer 5kg | V29: =COUNTIF(C2:C372,"*Sel de mer 5kg*") -> 0
A30: A.8.0 | B30: 22 | C30: café | D30: 251 | E30: 2016-11-07 | F30: 1 | G30: 29 | H30: =E30-T1 -> 66 | I30: ATTENTION MOINS DE 3 MOIS | J30: =E30-T1 -> 66 | K30: 90 | M30: b | U30: Technyfil1 | V30: =COUNTIF(C2:C372,"*technyfil1*") -> 0
A31: A.8.1 | B31: 22 | C31: café | D31: 251 | E31: 2016-11-07 | F31: 1 | G31: 50 | H31: =E31-T1 -> 66 | I31: ATTENTION MOINS DE 3 MOIS | J31: =E31-T1 -> 66 | K31: 90 | M31: b | U31: Technyfil2 | V31: =COUNTIF(C2:C372,"*technyfil2*") -> 0
A32: A.8.2 | B32: 22 | C32: café | D32: 251 | E32: 2016-11-07 | F32: 1 | G32: 50 | H32: =E32-T1 -> 66 | I32: ATTENTION MOINS DE 3 MOIS | J32: =E32-T1 -> 66 | K32: 90 | M32: b | U32: Technyfil3 | V32: =COUNTIF(C2:C372,"*technyfil2*") -> 0
A33: A.8.3 | B33: 22 | C33: café | D33: 251 | E33: 2016-11-07 | F33: 1 | G33: 50 | H33: =E33-T1 -> 66 | I33: ATTENTION MOINS DE 3 MOIS | J33: =E33-T1 -> 66 | K33: 90 | M33: b | U33: Vachette dx | V33: =COUNTIF(C2:C372,"*Vachette dx*") -> 0
A34: A.9.0 | B34: 22 | C34: café | D34: 251 | E34: 2016-11-07 | F34: 1 | G34: 50 | H34: =E34-T1 -> 66 | I34: =IF(K34=90,"ATTENTION MOINS DE 3 MOIS",IF(L34=30,"ATTENTION MOINS DE 30 JOURS",IF(M34=0,"PERIME!!!","OK"))) -> ATTENTION MOINS DE 3 MOIS | J34: =E34-T1 -> 66 | K34: 90 | M34: b | U34: Vachette sel | V34: =COUNTIF(C2:C372,"*Vachette sel*") -> 0
A35: A.9.1 | B35: 22 | C35: café | D35: 251 | E35: 2016-11-07 | F35: 1 | G35: 50 | H35: =E35-T1 -> 66 | I35: ATTENTION MOINS DE 3 MOIS | J35: =E35-T1 -> 66 | K35: 90 | M35: b
A36: A.9.2 | B36: 22 | C36: café | D36: 189 | E36: 2016-09-07 | F36: 1 | G36: 50 | H36: =E36-T1 -> 5 | I36: ATTENTION MOINS DE 30 JOURS | J36: =E36-T1 -> 5 | L36: 30 | M36: b
A37: A.9.3 | B37: 22 | C37: café | D37: 251 | E37: 2016-11-07 | F37: 1 | G37: 50 | H37: =E37-T1 -> 66 | I37: ATTENTION MOINS DE 3 MOIS | J37: =E37-T1 -> 66 | K37: 90 | M37: b
A38: B.1.0 | B38: 8 | C38: lait x 1 | D38: 263 | E38: 2016-11-19 | F38: 1 | G38: 48 | H38: =E38-T1 -> 78 | I38: ATTENTION MOINS DE 3 MOIS | J38: =E38-T1 -> 78 | K38: 90 | M38: b
A39: B.1.1 | B39: // | C39: // | D39: // | E39: // | F39: // | G39: 0 | H39: =E39-T1 ->  | J39: =E39-T1 -> 
A40: B.1.2 | B40: // | C40: // | D40: // | E40: // | F40: // | G40: 0 | H40: =E40-T1 ->  | J40: =E40-T1 -> 
A41: B.1.3 | B41: // | C41: // | D41: // | E41: // | F41: // | G41: 0 | H41: =E41-T1 ->  | J41: =E41-T1 -> 
A42: B.2.0 | B42: 8 | C42: lait x 1 | D42: 345 | E42: 2017-02-10 | F42: 1 | G42: 48 | H42: =E42-T1 -> 161 | I42: OK | J42: =E42-T1 -> 161 | M42: b | N42: n
A43: B.2.1 | B43: // | C43: // | D43: // | E43: // | F43: // | G43: 0 | H43: =E43-T1 ->  | J43: =E43-T1 -> 
A44: B.2.2 | B44: 24 | C44: bouchée | D44: 312 | E44: 2017-01-07 | F44: 1 | G44: 46 | H44: =E44-T1 -> 127 | I44: OK | J44: =E44-T1 -> 127 | M44: b | N44: n
A45: B.2.3 | B45: 2 | C45: pain | D45: 238 | E45: 2016-10-25 | F45: 1 | G45: 70 | H45: =E45-T1 -> 53 | I45: ATTENTION MOINS DE 3 MOIS | J45: =E45-T1 -> 53 | K45: 90 | M45: b
A46: B.3.0 | B46: 3 | C46: biscottes | D46: 289 | E46: 2016-12-15 | F46: 1 | G46: 48 | H46: =E46-T1 -> 104 | I46: OK | J46: =E46-T1 -> 104 | M46: b | N46: n
A47: B.3.1 | B47: 2 | C47: pain | D47: 224 | E47: 2016-10-11 | F47: 1 | G47: 70 | H47: =E47-T1 -> 39 | I47: ATTENTION MOINS DE 3 MOIS | J47: =E47-T1 -> 39 | K47: 90 | M47: b
A48: B.3.2 | B48: 2 | C48: pain | D48: 224 | E48: 2016-10-11 | F48: 1 | G48: 70 | H48: =E48-T1 -> 39 | I48: ATTENTION MOINS DE 3 MOIS | J48: =E48-T1 -> 39 | K48: 90 | M48: b
A49: B.3.3 | B49: // | C49: // | D49: // | E49: // | F49: // | G49: 0 | H49: =E49-T1 ->  | J49: =E49-T1 -> 
A50: B.4.0 | B50: 3 | C50: biscottes | D50: 289 | E50: 2016-12-15 | F50: 1 | G50: 48 | H50: =E50-T1 -> 104 | I50: OK | J50: =E50-T1 -> 104 | M50: b | N50: n
A51: B.4.1 | B51: 17 | C51: saucisson ail | D51: 326 | E51: 2017-01-20 | F51: 1 | G51: 80 | H51: =E51-T1 -> 140 | I51: OK | J51: =E51-T1 -> 140 | M51: b | N51: n
A52: B.4.2 | B52: 18 | C52: macédoine 1 kg | D52: 275 | E52: 2016-12-01 | F52: 1 | G52: 50 | H52: =E52-T1 -> 90 | I52: ATTENTION MOINS DE 3 MOIS | J52: =E52-T1 -> 90 | K52: 90 | M52: b
A53: B.4.3 | B53: 17 | C53: saucisson ail | D53: 326 | E53: 2017-01-20 | F53: 1 | G53: 20 | H53: =E53-T1 -> 140 | I53: OK | J53: =E53-T1 -> 140 | M53: b | N53: n
A54: B.5.0 | B54: 3 | C54: biscottes | D54: 284 | E54: 2016-12-10 | F54: 1 | G54: 48 | H54: =E54-T1 -> 99 | I54: OK | J54: =E54-T1 -> 99 | M54: b | N54: n
A55: B.5.1 | B55: // | C55: // | D55: // | E55: // | F55: // | G55: 0 | H55: =E55-T1 ->  | J55: =E55-T1 -> 
A56: B.5.2 | B56: 5 | C56: saucisson | D56: 296 | E56: 2016-12-22 | F56: 1 | G56: 90 | H56: =E56-T1 -> 111 | I56: OK | J56: =E56-T1 -> 111 | M56: b | N56: n
A57: B.5.3 | B57: 5 | C57: saucisson | D57: 296 | E57: 2016-12-22 | F57: 1 | G57: 90 | H57: =E57-T1 -> 111 | I57: OK | J57: =E57-T1 -> 111 | M57: b | N57: n
A58: B.6.0 | B58: 3 | C58: biscottes | D58: 284 | E58: 2016-12-10 | F58: 1 | G58: 48 | H58: =E58-T1 -> 99 | I58: =IF(K58=90,"ATTENTION MOINS DE 3 MOIS",IF(L58=30,"ATTENTION MOINS DE 30 JOURS",IF(M58=0,"PERIME!!!","OK"))) -> OK | J58: =E58-T1 -> 99 | M58: b | N58: n
A59: B.6.1 | B59: 19 | C59: salami | D59: 362 | E59: 2017-02-27 | F59: 1 | G59: 23 | H59: =E59-T1 -> 178 | I59: =IF(K59=90,"ATTENTION MOINS DE 3 MOIS",IF(L59=30,"ATTENTION MOINS DE 30 JOURS",IF(M59=0,"PERIME!!!","OK"))) -> OK | J59: =E59-T1 -> 178 | M59: b | N59: n
A60: B.6.2 | B60: 21 | C60: sucre | D60: 364 | E60: 2017-02-28 | F60: 1 | G60: 42 | H60: =E60-T1 -> 179 | I60: =IF(K60=90,"ATTENTION MOINS DE 3 MOIS",IF(L60=30,"ATTENTION MOINS DE 30 JOURS",IF(M60=0,"PERIME!!!","OK"))) -> OK | J60: =E60-T1 -> 179 | M60: =IF(J60<=0,0,"b") -> b | N60: n
A61: B.6.3 | B61: 15 | C61: salade verte | D61: 361 | E61: 2017-02-26 | F61: 1 | G61: 80 | H61: =E61-T1 -> 177 | I61: OK | J61: =E61-T1 -> 177 | M61: b | N61: n
A62: B.7.0 | B62: 3 | C62: biscottes | D62: 284 | E62: 2016-12-10 | F62: 1 | G62: 48 | H62: =E62-T1 -> 99 | I62: OK | J62: =E62-T1 -> 99 | M62: b | N62: n
A63: B.7.1 | B63: // | C63: // | D63: // | E63: // | F63: // | G63: 0 | H63: =E63-T1 ->  | J63: =E63-T1 -> 
A64: B.7.2 | B64: 5 | C64: saucisson | D64: 321 | E64: 2017-01-16 | F64: 1 | G64: 90 | H64: =E64-T1 -> 136 | I64: OK | J64: =E64-T1 -> 136 | M64: b | N64: n
A65: B.7.3 | B65: 5 | C65: saucisson | D65: 321 | E65: 2017-01-16 | F65: 1 | G65: 20 | H65: =E65-T1 -> 136 | I65: OK | J65: =E65-T1 -> 136 | M65: b | N65: n
A66: B.8.0 | B66: 3 | C66: biscottes | D66: 284 | E66: 2016-12-10 | F66: 1 | G66: 48 | H66: =E66-T1 -> 99 | I66: OK | J66: =E66-T1 -> 99 | M66: b | N66: n
A67: B.8.1 | B67: 28 | C67: céleri | D67: 336 | E67: 2017-02-01 | F67: 1 | G67: 55 | H67: =E67-T1 -> 152 | I67: OK | J67: =E67-T1 -> 152 | M67: b | N67: n
A68: B.8.2 | B68: 18 | C68: macédoine 1 kg | D68: 275 | E68: 2016-12-01 | F68: 1 | G68: 80 | H68: =E68-T1 -> 90 | I68: ATTENTION MOINS DE 3 MOIS | J68: =E68-T1 -> 90 | K68: 90 | M68: b
A69: B.8.3 | B69: 19 | C69: salami | D69: 362 | E69: 2017-02-27 | F69: 1 | G69: 80 | H69: =E69-T1 -> 178 | I69: OK | J69: =E69-T1 -> 178 | M69: b | N69: n
A70: B.9.0 | B70: 3 | C70: biscottes | D70: 284 | E70: 2016-12-10 | F70: 1 | G70: 48 | H70: =E70-T1 -> 99 | I70: OK | J70: =E70-T1 -> 99 | M70: b | N70: n
A71: B.9.1 | B71: 30 | C71: pêche 1kg | D71: 306 | E71: 2017-01-01 | F71: 1 | G71: 60 | H71: =E71-T1 -> 121 | I71: OK | J71: =E71-T1 -> 121 | M71: b | N71: n
A72: B.9.2 | B72: 17 | C72: saucisson ail | D72: 326 | E72: 2017-01-20 | F72: 1 | G72: 26 | H72: =E72-T1 -> 140 | I72: OK | J72: =E72-T1 -> 140 | M72: b | N72: n
A73: B.9.3 | B73: 15 | C73: salade verte | D73: 361 | E73: 2017-02-26 | F73: 1 | G73: 80 | H73: =E73-T1 -> 177 | I73: OK | J73: =E73-T1 -> 177 | M73: b | N73: n
A74: C.1.0 | B74: 7 | C74: lait x 6 | D74: 275 | E74: 2016-12-01 | F74: 1 | G74: 52 | H74: =E74-T1 -> 90 | I74: ATTENTION MOINS DE 3 MOIS | J74: =E74-T1 -> 90 | K74: 90 | M74: b
A75: C.1.1 | B75: 11 | C75: haricot blanc x 2 | D75: 277 | E75: 2016-12-03 | F75: 1 | G75: 140 | H75: =E75-T1 -> 92 | I75: OK | J75: =E75-T1 -> 92 | M75: b | N75: n
A76: C.1.2 | B76: // | C76: // | D76: // | E76: // | F76: // | G76: 0 | H76: =E76-T1 ->  | J76: =E76-T1 -> 
A77: C.1.3 | B77: // | C77: // | D77: // | E77: // | F77: // | G77: 0 | H77: =E77-T1 ->  | J77: =E77-T1 -> 
A78: C.2.0 | B78: 7 | C78: lait x 6 | D78: 275 | E78: 2016-12-01 | F78: 1 | G78: 52 | H78: =E78-T1 -> 90 | I78: ATTENTION MOINS DE 3 MOIS | J78: =E78-T1 -> 90 | K78: 90 | M78: b
A79: C.2.1 | B79: // | C79: // | D79: // | E79: // | F79: // | G79: 0 | H79: =E79-T1 ->  | J79: =E79-T1 -> 
A80: C.2.2 | B80: // | C80: // | D80: // | E80: // | F80: // | G80: 0 | H80: =E80-T1 ->  | J80: =E80-T1 -> 
A81: C.2.3 | B81: // | C81: // | D81: // | E81: // | F81: // | G81: 0 | H81: =E81-T1 ->  | J81: =E81-T1 -> 
A82: C.3.0 | B82: 28 | C82: céleri | D82: 336 | E82: 2017-02-01 | F82: 1 | G82: 55 | H82: =E82-T1 -> 152 | I82: OK | J82: =E82-T1 -> 152 | M82: b | N82: n
A83: C.3.1 | B83: // | C83: // | D83: // | E83: // | F83: // | G83: 0 | H83: =E83-T1 ->  | J83: =E83-T71 -> 
A84: C.3.2 | B84: // | C84: // | D84: // | E84: // | F84: // | G84: 0 | H84: =E84-T1 ->  | J84: =E84-T1 -> 
A85: C.3.3 | B85: // | C85: // | D85: // | E85: // | F85: // | G85: 0 | H85: =E85-T1 ->  | J85: =E85-T1 -> 
A86: C.4.0 | B86: 7 | C86: lait x 6 | D86: 275 | E86: 2016-12-01 | F86: 1 | G86: 52 | H86: =E86-T1 -> 90 | I86: ATTENTION MOINS DE 3 MOIS | J86: =E86-T1 -> 90 | K86: 90 | M86: b
A87: C.4.1 | B87: // | C87: // | D87: // | E87: // | F87: // | G87: 0 | H87: =E87-T1 ->  | J87: =E87-T1 -> 
A88: C.4.2 | B88: // | C88: // | D88: // | E88: // | F88: // | G88: 0 | H88: =E88-T1 ->  | J88: =E88-T1 -> 
A89: C.4.3 | B89: // | C89: // | D89: // | E89: // | F89: // | G89: 0 | H89: =E89-T1 ->  | J89: =E89-T1 ->  | K89: =IF(AND(J89<=90,J89>30),90,"") ->  | L89: =IF(AND(J89<=30,J89>0),30,"") ->  | M89: =IF(J89<=0,0,"b") ->  | N89: =IF(J89>90,"n","") -> 
A90: C.5.0 | B90: 7 | C90: lait x 6 | D90: 275 | E90: 2016-12-01 | F90: 1 | G90: 52 | H90: =E90-T1 -> 90 | I90: ATTENTION MOINS DE 3 MOIS | J90: =E90-T1 -> 90 | K90: 90 | M90: b
A91: C.5.1 | B91: // | C91: // | D91: // | E91: // | F91: // | G91: 0 | H91: =E91-T1 ->  | J91: =E91-T1 -> 
A92: C.5.2 | B92: // | C92: // | D92: // | E92: // | F92: // | G92: 0 | H92: =E92-T1 ->  | J92: =E92-T1 -> 
A93: C.5.3 | B93: // | C93: // | D93: // | E93: // | F93: // | G93: 0 | H93: =E93-T1 ->  | J93: =E93-T1 -> 
A94: C.6.0 | B94: 3 | C94: biscottes | D94: 291 | E94: 2016-12-17 | F94: 1 | G94: 48 | H94: =E94-T1 -> 106 | I94: OK | J94: =E94-T1 -> 106 | M94: b | N94: n
A95: C.6.1 | B95: // | C95: // | D95: // | E95: // | F95: // | G95: 0 | H95: =E95-T1 ->  | J95: =E95-T1 -> 
A96: C.6.2 | B96: // | C96: // | D96: // | E96: // | F96: // | G96: 0 | H96: =E96-T1 ->  | J96: =E96-T1 -> 
A97: C.6.3 | B97: // | C97: // | D97: // | E97: // | F97: // | G97: 0 | H97: =E97-T1 ->  | J97: =E97-T1 -> 
A98: C.7.0 | B98: 6 | C98: saucisse fumée | D98: 284 | E98: 2016-12-10 | F98: 1 | G98: 60 | H98: =E98-T1 -> 99 | I98: OK | J98: =E98-T1 -> 99 | M98: b | N98: n
A99: C.7.1 | B99: // | C99: // | D99: // | E99: // | F99: // | G99: 0 | H99: =E99-T1 ->  | J99: =E99-T1 -> 
A100: C.7.2 | B100: // | C100: // | D100: // | E100: // | F100: // | G100: 0 | H100: =E100-T1 ->  | J100: =E100-T1 -> 
A101: C.7.3 | B101: 4 | C101: pain de mie | D101: 315 | E101: 2017-01-10 | F101: 1 | G101: 72 | H101: =E101-T1 -> 130 | I101: OK | J101: =E101-T1 -> 130 | M101: b | N101: n
A102: C.8.0 | B102: 7 | C102: lait x 6 | D102: 275 | E102: 2016-12-01 | F102: 1 | G102: 52 | H102: =E102-T1 -> 90 | I102: ATTENTION MOINS DE 3 MOIS | J102: =E102-T1 -> 90 | K102: 90 | M102: b
A103: C.8.1 | B103: 7 | C103: lait x 6 | D103: 275 | E103: 2016-12-01 | F103: 1 | G103: 52 | H103: =E103-T1 -> 90 | I103: ATTENTION MOINS DE 3 MOIS | J103: =E103-T1 -> 90 | K103: 90 | M103: b
A104: C.8.2 | B104: 7 | C104: lait x 6 | D104: 275 | E104: 2016-12-01 | F104: 1 | G104: 52 | H104: =E104-T1 -> 90 | I104: ATTENTION MOINS DE 3 MOIS | J104: =E104-T1 -> 90 | K104: 90 | M104: b
A105: C.8.3 | B105: 7 | C105: lait x 6 | D105: 275 | E105: 2016-12-01 | F105: 1 | G105: 52 | H105: =E105-T1 -> 90 | I105: ATTENTION MOINS DE 3 MOIS | J105: =E105-T1 -> 90 | K105: 90 | M105: b
A106: C.9.0 | B106: 7 | C106: lait x 6 | D106: 275 | E106: 2016-12-01 | F106: 1 | G106: 52 | H106: =E106-T1 -> 90 | I106: ATTENTION MOINS DE 3 MOIS | J106: =E106-T1 -> 90 | K106: 90 | M106: b
A107: C.9.1 | B107: 4 | C107: pain de mie | D107: 315 | E107: 2017-01-10 | F107: 1 | G107: 72 | H107: =E107-T1 -> 130 | I107: OK | J107: =E107-T1 -> 130 | M107: b | N107: n
A108: C.9.2 | B108: 4 | C108: pain de mie | D108: 315 | E108: 2017-01-10 | F108: 1 | G108: 72 | H108: =E108-T1 -> 130 | I108: OK | J108: =E108-T1 -> 130 | M108: b | N108: n
A109: C.9.3 | B109: // | C109: // | D109: // | E109: // | F109: // | G109: 0 | H109: =E109-T1 ->  | J109: =E109-T1 -> 
A110: D.1.0 | B110: 7 | C110: lait x 6 | D110: 275 | E110: 2016-12-01 | F110: 1 | G110: 52 | H110: =E110-T1 -> 90 | I110: ATTENTION MOINS DE 3 MOIS | J110: =E110-T1 -> 90 | K110: 90 | M110: b
A111: D.1.1 | B111: // | C111: // | D111: // | E111: // | F111: // | G111: 0 | H111: =E111-T1 ->  | J111: =E111-T1 -> 
A112: D.1.2 | B112: // | C112: // | D112: // | E112: // | F112: // | G112: 0 | H112: =E112-T1 ->  | J112: =E112-T1 -> 
A113: D.1.3 | B113: // | C113: // | D113: // | E113: // | F113: // | G113: 0 | H113: =E113-T1 ->  | J113: =E113-T1 -> 
A114: D.2.0 | B114: // | C114: // | D114: // | E114: // | F114: // | G114: 0 | H114: =E114-T1 ->  | J114: =E114-T1 -> 
A115: D.2.1 | B115: // | C115: // | D115: // | E115: // | F115: // | G115: 0 | H115: =E115-T1 ->  | J115: =E115-T1 -> 
A116: D.2.2 | B116: // | C116: // | D116: // | E116: // | F116: // | G116: 0 | H116: =E116-T1 ->  | J116: =E116-T1 -> 
A117: D.2.3 | B117: // | C117: // | D117: // | E117: // | F117: // | G117: 0 | H117: =E117-T1 ->  | J117: =E117-T1 -> 
A118: D.3.0 | B118: // | C118: // | D118: // | E118: // | F118: // | G118: 0 | H118: =E118-T1 ->  | J118: =E118-T1 -> 
A119: D.3.1 | B119: // | C119: // | D119: // | E119: // | F119: // | G119: 0 | H119: =E119-T1 ->  | J119: =E119-T1 -> 
A120: D.3.2 | B120: 16 | C120: frite | D120: 120 | E120: 2016-06-29 | F120: 1 | G120: 80 | H120: =E120-T1 -> -65 | I120: PERIME!!! | J120: =E120-T1 -> -65 | M120: 0
A121: D.3.3 | B121: 16 | C121: frite | D121: 256 | E121: 2016-11-12 | F121: 1 | G121: 80 | H121: =E121-T1 -> 71 | I121: ATTENTION MOINS DE 3 MOIS | J121: =E121-T1 -> 71 | K121: 90 | M121: b
A122: D.4.0 | B122: 25 | C122: sardine x 2 | D122: 326 | E122: 2017-01-21 | F122: 1 | G122: 540 | H122: =E122-T1 -> 141 | I122: OK | J122: =E122-T1 -> 141 | M122: b | N122: n
A123: D.4.1 | B123: 16 | C123: frite | D123: 256 | E123: 2016-11-12 | F123: 1 | G123: 80 | H123: =E123-T1 -> 71 | I123: =IF(K123=90,"ATTENTION MOINS DE 3 MOIS",IF(L123=30,"ATTENTION MOINS DE 30 JOURS",IF(M123=0,"PERIME!!!","OK"))) -> ATTENTION MOINS DE 3 MOIS | J123: =E123-T1 -> 71 | K123: 90 | M123: b
A124: D.4.2 | B124: 16 | C124: frite | D124: 256 | E124: 2016-11-12 | F124: 1 | G124: 80 | H124: =E124-T1 -> 71 | I124: ATTENTION MOINS DE 3 MOIS | J124: =E124-T1 -> 71 | K124: 90 | M124: b
A125: D.4.3 | B125: 16 | C125: frite | D125: 256 | E125: 2016-11-12 | F125: 1 | G125: 80 | H125: =E125-T1 -> 71 | I125: ATTENTION MOINS DE 3 MOIS | J125: =E125-T1 -> 71 | K125: 90 | M125: b
A126: D.5.0 | B126: 6 | C126: saucisse fumée | D126: 284 | E126: 2016-12-10 | F126: 1 | G126: 60 | H126: =E126-T1 -> 99 | I126: OK | J126: =E126-T1 -> 99 | M126: b | N126: n
A127: D.5.1 | B127: 16 | C127: frite | D127: 256 | E127: 2016-11-12 | F127: 1 | G127: 80 | H127: =E127-T1 -> 71 | I127: ATTENTION MOINS DE 3 MOIS | J127: =E127-T1 -> 71 | K127: 90 | M127: b
A128: D.5.2 | B128: 16 | C128: frite | D128: 256 | E128: 2016-11-12 | F128: 1 | G128: 80 | H128: =E128-T1 -> 71 | I128: ATTENTION MOINS DE 3 MOIS | J128: =E128-T1 -> 71 | K128: 90 | M128: b
A129: D.5.3 | B129: 16 | C129: frite | D129: 256 | E129: 2016-11-12 | F129: 1 | G129: 80 | H129: =E129-T1 -> 71 | I129: ATTENTION MOINS DE 3 MOIS | J129: =E129-T1 -> 71 | K129: 90 | M129: b
A130: D.6.0 | B130: 25 | C130: sardine x 2 | D130: 326 | E130: 2017-01-21 | F130: 1 | G130: 540 | H130: =E130-T1 -> 141 | I130: OK | J130: =E130-T1 -> 141 | M130: b | N130: n
A131: D.6.1 | B131: // | C131: // | D131: // | E131: // | F131: // | G131: 0 | H131: =E131-T1 ->  | J131: =E131-T1 -> 
A132: D.6.2 | B132: // | C132: // | D132: // | E132: // | F132: // | G132: 0 | H132: =E132-T1 ->  | J132: =E132-T1 -> 
A133: D.6.3 | B133: 16 | C133: frite | D133: 256 | E133: 2016-11-12 | F133: 1 | G133: 80 | H133: =E133-T1 -> 71 | I133: ATTENTION MOINS DE 3 MOIS | J133: =E133-T1 -> 71 | K133: 90 | M133: b
A134: D.7.0 | B134: 25 | C134: sardine x 2 | D134: 328 | E134: 2017-01-23 | F134: 1 | G134: 540 | H134: =E134-T1 -> 143 | I134: OK | J134: =E134-T1 -> 143 | M134: b | N134: n
A135: D.7.1 | B135: 16 | C135: frite | D135: 256 | E135: 2016-11-12 | F135: 1 | G135: 80 | H135: =E135-T1 -> 71 | I135: ATTENTION MOINS DE 3 MOIS | J135: =E135-T1 -> 71 | K135: 90 | M135: b
A136: D.7.2 | B136: 16 | C136: frite | D136: 256 | E136: 2016-11-12 | F136: 1 | G136: 80 | H136: =E136-T1 -> 71 | I136: ATTENTION MOINS DE 3 MOIS | J136: =E136-T1 -> 71 | K136: 90 | M136: b
A137: D.7.3 | B137: // | C137: // | D137: // | E137: // | F137: // | G137: 0 | H137: =E137-T1 ->  | J137: =E137-T1 -> 
A138: D.8.0 | B138: 25 | C138: sardine x 2 | D138: 326 | E138: 2017-01-21 | F138: 1 | G138: 540 | H138: =E138-T1 -> 141 | I138: OK | J138: =E138-T1 -> 141 | M138: b | N138: n
A139: D.8.1 | B139: 16 | C139: frite | D139: 256 | E139: 2016-11-12 | F139: 1 | G139: 80 | H139: =E139-T1 -> 71 | I139: ATTENTION MOINS DE 3 MOIS | J139: =E139-T1 -> 71 | K139: 90 | M139: b
A140: D.8.2 | B140: 16 | C140: frite | D140: 256 | E140: 2016-11-12 | F140: 1 | G140: 80 | H140: =E140-T1 -> 71 | I140: ATTENTION MOINS DE 3 MOIS | J140: =E140-T1 -> 71 | K140: 90 | M140: b
A141: D.8.3 | B141: 16 | C141: frite | D141: 256 | E141: 2016-11-12 | F141: 1 | G141: 80 | H141: =E141-T1 -> 71 | I141: ATTENTION MOINS DE 3 MOIS | J141: =E141-T1 -> 71 | K141: 90 | M141: b
A142: D.9.0 | B142: 25 | C142: sardine x 2 | D142: 326 | E142: 2017-01-21 | F142: 1 | G142: 540 | H142: =E142-T1 -> 141 | I142: OK | J142: =E142-T1 -> 141 | M142: b | N142: n
A143: D.9.1 | B143: 16 | C143: frite | D143: 256 | E143: 2016-11-12 | F143: 1 | G143: 80 | H143: =E143-T1 -> 71 | I143: ATTENTION MOINS DE 3 MOIS | J143: =E143-T1 -> 71 | K143: 90 | M143: b
A144: D.9.2 | B144: 16 | C144: frite | D144: 256 | E144: 2016-11-12 | F144: 1 | G144: 80 | H144: =E144-T1 -> 71 | I144: ATTENTION MOINS DE 3 MOIS | J144: =E144-T1 -> 71 | K144: 90 | M144: b
A145: D.9.3 | B145: // | C145: // | D145: // | E145: // | F145: // | G145: 0 | H145: =E145-T1 ->  | J145: =E145-T1 -> 
A146: E.1.0 | B146: 25 | C146: sardine x 2 | D146: 328 | E146: 2017-01-23 | F146: 1 | G146: 540 | H146: =E146-T1 -> 143 | I146: OK | J146: =E146-T1 -> 143 | M146: b | N146: n
A147: E.1.1 | B147: 29 | C147: sucre | D147: // | E147: // | F147: // | G147: 0 | H147: =E147-T1 ->  | J147: =E147-T1 -> 
A148: E.1.2 | B148: 29 | C148: sucre | D148: // | E148: // | F148: // | G148: 0 | H148: =E148-T1 ->  | J148: =E148-T1 -> 
A149: E.1.3 | B149: 29 | C149: sucre | D149: // | E149: // | F149: // | G149: 0 | H149: =E149-T1 ->  | J149: =E149-T1 -> 
A150: E.2.0 | B150: 25 | C150: sardine x 2 | D150: 326 | E150: 2017-01-21 | F150: 1 | G150: 540 | H150: =E150-T1 -> 141 | I150: OK | J150: =E150-T1 -> 141 | M150: b | N150: n
A151: E.2.1 | B151: 29 | C151: sucre | D151: // | E151: // | F151: // | G151: 0 | H151: =E151-T1 ->  | J151: =E151-T1 -> 
A152: E.2.2 | B152: 29 | C152: sucre | D152: // | E152: // | F152: // | G152: 0 | H152: =E152-T1 ->  | J152: =E152-T1 -> 
A153: E.2.3 | B153: 29 | C153: sucre | D153: // | E153: // | F153: // | G153: 0 | H153: =E153-T1 ->  | J153: =E153-T1 ->  | K153: =IF(AND(J153<=90,J153>30),90,"") ->  | L153: =IF(AND(J153<=30,J153>0),30,"") ->  | M153: =IF(J153<=0,0,"b") ->  | N153: =IF(J153>90,"n","") -> 
A154: E.3.0 | B154: 6 | C154: saucisse fumée | D154: 284 | E154: 2016-12-10 | F154: 1 | G154: 60 | H154: =E154-T1 -> 99 | I154: OK | J154: =E154-T1 -> 99 | M154: b | N154: n
A155: E.3.1 | B155: 29 | C155: sucre | D155: // | E155: // | F155: // | G155: 0 | H155: =E155-T1 ->  | J155: =E155-T1 -> 
A156: E.3.2 | B156: 29 | C156: sucre | D156: // | E156: // | F156: // | G156: 0 | H156: =E156-T1 ->  | J156: =E156-T1 -> 
A157: E.3.3 | B157: 29 | C157: sucre | D157: // | E157: // | F157: // | G157: 0 | H157: =E157-T1 ->  | J157: =E157-T1 -> 
A158: E.4.0 | B158: 25 | C158: sardine x 2 | D158: 326 | E158: 2017-01-21 | F158: 1 | G158: 540 | H158: =E158-T1 -> 141 | I158: OK | J158: =E158-T1 -> 141 | M158: b | N158: n
A159: E.4.1 | B159: 29 | C159: sucre | D159: // | E159: // | F159: // | G159: 0 | H159: =E159-T1 ->  | J159: =E159-T1 -> 
A160: E.4.2 | B160: 29 | C160: sucre | D160: // | E160: // | F160: // | G160: 0 | H160: =E160-T1 ->  | J160: =E160-T1 -> 
A161: E.4.3 | B161: 29 | C161: sucre | D161: // | E161: // | F161: // | G161: 0 | H161: =E161-T1 ->  | J161: =E161-T1 -> 
A162: E.5.0 | B162: 25 | C162: sardine x 2 | D162: 328 | E162: 2017-01-23 | F162: 1 | G162: 540 | H162: =E162-T1 -> 143 | I162: OK | J162: =E162-T1 -> 143 | M162: b | N162: n
A163: E.5.1 | B163: 2 | C163: pain | D163: 224 | E163: 2016-10-11 | F163: 1 | G163: 70 | H163: =E163-T1 -> 39 | I163: ATTENTION MOINS DE 3 MOIS | J163: =E163-T1 -> 39 | K163: 90 | M163: b
A164: E.5.2 | B164: 2 | C164: pain | D164: // | E164: // | F164: // | G164: 0 | H164: =E164-T1 ->  | J164: =E164-T1 -> 
A165: E.5.3 | B165: 2 | C165: pain | D165: 224 | E165: 2016-10-11 | F165: 1 | G165: 70 | H165: =E165-T1 -> 39 | I165: ATTENTION MOINS DE 3 MOIS | J165: =E165-T1 -> 39 | K165: 90 | M165: b
A166: E.6.0 | B166: 25 | C166: sardine x 2 | D166: 326 | E166: 2017-01-21 | F166: 1 | G166: 540 | H166: =E166-T1 -> 141 | I166: OK | J166: =E166-T1 -> 141 | M166: b | N166: n
A167: E.6.1 | B167: 2 | C167: pain | D167: 224 | E167: 2016-10-11 | F167: 1 | G167: 70 | H167: =E167-T1 -> 39 | I167: ATTENTION MOINS DE 3 MOIS | J167: =E167-T1 -> 39 | K167: 90 | M167: b
A168: E.6.2 | B168: 2 | C168: pain | D168: 224 | E168: 2016-10-11 | F168: 1 | G168: 70 | H168: =E168-T1 -> 39 | I168: ATTENTION MOINS DE 3 MOIS | J168: =E168-T1 -> 39 | K168: 90 | M168: b
A169: E.6.3 | B169: 2 | C169: pain | D169: 224 | E169: 2016-10-11 | F169: 1 | G169: 70 | H169: =E169-T1 -> 39 | I169: ATTENTION MOINS DE 3 MOIS | J169: =E169-T1 -> 39 | K169: 90 | M169: b
A170: E.7.0 | B170: 25 | C170: sardine x 2 | D170: 328 | E170: 2017-01-23 | F170: 1 | G170: 540 | H170: =E170-T1 -> 143 | I170: OK | J170: =E170-T1 -> 143 | M170: b | N170: n
A171: E.7.1 | B171: 2 | C171: pain | D171: 224 | E171: 2016-10-11 | F171: 1 | G171: 70 | H171: =E171-T1 -> 39 | I171: ATTENTION MOINS DE 3 MOIS | J171: =E171-T1 -> 39 | K171: 90 | M171: b
A172: E.7.2 | B172: 2 | C172: pain | D172: 224 | E172: 2016-10-11 | F172: 1 | G172: 70 | H172: =E172-T1 -> 39 | I172: ATTENTION MOINS DE 3 MOIS | J172: =E172-T1 -> 39 | K172: 90 | M172: b
A173: E.7.3 | B173: 2 | C173: pain | D173: 224 | E173: 2016-10-11 | F173: 1 | G173: 70 | H173: =E173-T1 -> 39 | I173: ATTENTION MOINS DE 3 MOIS | J173: =E173-T1 -> 39 | K173: 90 | M173: b
A174: E.8.0 | B174: 10 | C174: haricot vert x 2 | D174: 332 | E174: 2017-01-27 | F174: 1 | G174: 540 | H174: =E174-T1 -> 147 | I174: OK | J174: =E174-T1 -> 147 | M174: b | N174: n
A175: E.8.1 | B175: 2 | C175: pain | D175: 224 | E175: 2016-10-11 | F175: 1 | G175: 70 | H175: =E175-T1 -> 39 | I175: ATTENTION MOINS DE 3 MOIS | J175: =E175-T1 -> 39 | K175: 90 | M175: b
A176: E.8.2 | B176: 30 | C176: pêche 1kg | D176: 306 | E176: 2017-01-01 | F176: 1 | G176: 60 | H176: =E176-T1 -> 121 | I176: OK | J176: =E176-T1 -> 121 | M176: b | N176: n
A177: E.8.3 | B177: 21 | C177: sucre | D177: 364 | E177: 2017-02-28 | F177: 1 | G177: 42 | H177: =E177-T1 -> 179 | I177: OK | J177: =E177-T1 -> 179 | M177: b | N177: n
A178: E.9.0 | B178: 10 | C178: haricot vert x 2 | D178: 326 | E178: 2017-01-21 | F178: 1 | G178: 540 | H178: =E178-T1 -> 141 | I178: OK | J178: =E178-T1 -> 141 | M178: b | N178: n
A179: E.9.1 | B179: 28 | C179: céleri | D179: 336 | E179: 2017-02-01 | F179: 1 | G179: 55 | H179: =E179-T1 -> 152 | I179: OK | J179: =E179-T1 -> 152 | M179: b | N179: n
A180: E.9.2 | B180: 15 | C180: salade verte | D180: 361 | E180: 2017-02-26 | F180: 1 | G180: 80 | H180: =E180-T1 -> 177 | I180: OK | J180: =E180-T1 -> 177 | M180: b | N180: n
A181: E.9.3 | B181: 21 | C181: sucre | D181: 364 | E181: 2017-02-28 | F181: 1 | G181: 42 | H181: =E181-T1 -> 179 | I181: OK | J181: =E181-T1 -> 179 | M181: b | N181: n
A182: F.1.0 | B182: 10 | C182: haricot vert x 2 | D182: 326 | E182: 2017-01-21 | F182: 1 | G182: 540 | H182: =E182-T1 -> 141 | I182: OK | J182: =E182-T1 -> 141 | M182: b | N182: n
A183: F.1.1 | B183: 21 | C183: sucre | D183: 364 | E183: 2017-02-28 | F183: 1 | G183: 42 | H183: =E183-T1 -> 179 | I183: OK | J183: =E183-T1 -> 179 | M183: b | N183: n
A184: F.1.2 | B184: 21 | C184: sucre | D184: 364 | E184: 2017-02-28 | F184: 1 | G184: 42 | H184: =E184-T1 -> 179 | I184: OK | J184: =E184-T1 -> 179 | M184: b | N184: n
A185: F.1.3 | B185: 30 | C185: pêche 1kg | D185: 306 | E185: 2017-01-01 | F185: 1 | G185: 60 | H185: =E185-T1 -> 121 | I185: OK | J185: =E185-T1 -> 121 | M185: b | N185: n
A186: F.2.0 | B186: 10 | C186: haricot vert x 2 | D186: 326 | E186: 2017-01-21 | F186: 1 | G186: 540 | H186: =E186-T1 -> 141 | I186: OK | J186: =E186-T1 -> 141 | M186: b | N186: n
A187: F.2.1 | B187: 21 | C187: sucre | D187: 364 | E187: 2017-02-28 | F187: 1 | G187: 42 | H187: =E187-T1 -> 179 | I187: =IF(K187=90,"ATTENTION MOINS DE 3 MOIS",IF(L187=30,"ATTENTION MOINS DE 30 JOURS",IF(M187=0,"PERIME!!!","OK"))) -> OK | J187: =E187-T1 -> 179 | M187: b | N187: n
A188: F.2.2 | B188: 18 | C188: macédoine 1 kg | D188: 275 | E188: 2016-12-01 | F188: 1 | G188: 80 | H188: =E188-T1 -> 90 | I188: ATTENTION MOINS DE 3 MOIS | J188: =E188-T1 -> 90 | K188: 90 | M188: b
A189: F.2.3 | B189: 28 | C189: céleri | D189: 336 | E189: 2017-02-01 | F189: 1 | G189: 55 | H189: =E189-T1 -> 152 | I189: OK | J189: =E189-T1 -> 152 | M189: b | N189: n
A190: F.3.0 | B190: 10 | C190: haricot vert x 2 | D190: 326 | E190: 2017-01-21 | F190: 1 | G190: 540 | H190: =E190-T1 -> 141 | I190: OK | J190: =E190-T1 -> 141 | M190: b | N190: n
A191: F.3.1 | B191: // | C191: // | D191: // | E191: // | F191: // | G191: 0 | H191: =E191-T1 ->  | J191: =E191-T1 -> 
A192: F.3.2 | B192: 15 | C192: salade verte | D192: 361 | E192: 2017-02-26 | F192: 1 | G192: 80 | H192: =E192-T1 -> 177 | I192: OK | J192: =E192-T1 -> 177 | M192: b | N192: n
A193: F.3.3 | B193: 21 | C193: sucre | D193: 364 | E193: 2017-02-28 | F193: 1 | G193: 42 | H193: =E193-T1 -> 179 | I193: OK | J193: =E193-T1 -> 179 | M193: b | N193: n
A194: F.4.0 | B194: 10 | C194: haricot vert x 2 | D194: 326 | E194: 2017-01-21 | F194: 1 | G194: 540 | H194: =E194-T1 -> 141 | I194: OK | J194: =E194-T1 -> 141 | M194: b | N194: n
A195: F.4.1 | B195: 18 | C195: macédoine 1 kg | D195: 275 | E195: 2016-12-01 | F195: 1 | G195: 80 | H195: =E195-T1 -> 90 | I195: ATTENTION MOINS DE 3 MOIS | J195: =E195-T1 -> 90 | K195: 90 | M195: b
A196: F.4.2 | B196: 30 | C196: pêche 1kg | D196: 306 | E196: 2017-01-01 | F196: 1 | G196: 60 | H196: =E196-T1 -> 121 | I196: OK | J196: =E196-T1 -> 121 | M196: b | N196: n
A197: F.4.3 | B197: 21 | C197: sucre | D197: 364 | E197: 2017-02-28 | F197: 1 | G197: 42 | H197: =E197-T1 -> 179 | I197: OK | J197: =E197-T1 -> 179 | M197: b | N197: n
A198: F.5.0 | B198: 10 | C198: haricot vert x 2 | D198: 326 | E198: 2017-01-21 | F198: 1 | G198: 540 | H198: =E198-T1 -> 141 | I198: OK | J198: =E198-T1 -> 141 | M198: b | N198: n
A199: F.5.1 | B199: 4 | C199: pain de mie | D199: 255 | E199: 2016-11-11 | F199: 1 | G199: 72 | H199: =E199-T1 -> 70 | I199: ATTENTION MOINS DE 3 MOIS | J199: =E199-T1 -> 70 | K199: 90 | M199: b
A200: F.5.2 | B200: 4 | C200: pain de mie | D200: 255 | E200: 2016-11-11 | F200: 1 | G200: 72 | H200: =E200-T1 -> 70 | I200: ATTENTION MOINS DE 3 MOIS | J200: =E200-T1 -> 70 | K200: 90 | M200: b
... 172 more rows

Sheet Accueil

Sheet Produit
A1: //
A2: abricot 1 kg
A3: biscottes
A4: bouchée
A5: café
A6: carotte rappée
A7: cassoulet
A8: céleri
A9: chocolat
A10: farine
A11: frite
A12: haricot blanc x 2
A13: haricot vert x 2
A14: jambon
A15: lait x 1
A16: lait x 6
A17: lardons 500g
A18: macédoine 1 kg
A19: pain
A20: pain de mie
A21: pêche 1kg
A22: petits pois x 2
A23: poire 1 kg
A24: salade verte
A25: salami
A26: sardine x 2
A27: saucisse fumée
A28: saucisson
A29: saucisson ail
A30: sucre
A31: thon

Sheet REF
A1: //
A2: 1
A3: 2
A4: 3
A5: 4
A6: 5
A7: 6
A8: 7
A9: 8
A10: 9
A11: 10
A12: 11
A13: 12
A14: 13
A15: 14
A16: 15
A17: 16
A18: 17
A19: 18
A20: 19
A21: 20
A22: 21
A23: 22
A24: 23
A25: 24
A26: 25
A27: 26
A28: 27
A29: 28
A30: 29
A31: 30
A32: 31
A33: 32
A34: 33
A35: 34
A36: 35

Sheet Feuil2 (hidden)
G1: 7 | H1: heures
A2: Emplacement | B2: Référence | C2: Désignation | D2: Code | F2: Palette | G2: Quantité | H2: Action
J4: Mettre ou la déposer

Sheet initiales (hidden)
A1: BG
A2: BL
A3: CN
A4: DB

Sheet Feuil3 (hidden)
A1: ANTOINE
A2: FONTE
A3: FT85
A4: JAMET
A5: LAHAYE
A6: PREP.AV
A7: RENAULT
A8: SYSTEME U
A9: TFE

Sheet Feuil5
A1: Historique de mouvements | N1: Erreur listbox recheche | R1: Erreur inputbox recherche | U1: Causes modification
A2: Date | B2: Heure | C2: Initiale | D2: Action | E2: Produit | F2: Camion | G2: Empl. | H2: Référence | I2: Produits | J2: Code | K2: Date | L2: Palettes | M2: Qtés | N2: 1 | O2: 2 | P2: 3 | Q2: 6 | R2: 2 | S2: 5 | T2: 4 | U2: 7 | V2: 8 | W2: 9 | X2: 10 | Y2: 11 | Z2: 12 | AA2: 13
AC7: Les erreurs listbox | AE7: Les causes
AC8: 1 | AD8: Visu sur stock | AE8: Une vue sur le stockage par référence ou par code
AC9: 2 | AD9: Erreur de référence | AE9: Erreur de saisie
AC10: 3 | AD10: Mauvaise palette | AE10: Mauvaise palette à l'emplacement
AC11: 6 | AD11: emplacement Vide/ occupé | AE11: Emplacement vide ou occupé
AC14: Les erreurs inputbox | AE14: Les causes
AC15: 2 | AD15: Erreur de référence | AE15: Erreur de saisie
AC16: 4 | AD16: Erreur d'action | AE16: Erreur dans l'action entrée/sortie
AC17: 5 | AD17: Autres stockage | AE17: N'est pas stocké dans ce magasin
AC20: Les modification | AE20: Les causes
AC21: 7 | AD21: Modif. Quantité + | AE21: Correction de la quantité, en +
AC22: 8 | AD22: Modif. Quantité - | AE22: Correction de la quantité, en -
AC23: 9 | AD23: Modif. Date | AE23: Correction de la date
AC24: 10 | AD24: Modif. De référence | AE24: Correction de référence
AC25: 11 | AD25: Modif. Code | AE25: Correction du code
AC26: 12 | AD26: Autres | AE26: Empl.vide…
AC27: 13 | AD27: Inventaire OK | AE27: R.A.S

Sheet Empl.
C2: A | Z2: B | AW2: C
C4: A.1.3 | D4: =IF(stock!B5,"//","") -> // | E4: A.2.3 | F4: =IF(stock!B9,"//","") -> // | G4: A.3.3 | H4: =IF(stock!B13,"//","") -> // | J4: A.4.3 | K4: =IF(stock!B17,"//","") ->  | L4: A.5.3 | M4: =IF(stock!B21,"//","") -> // | N4: A.6.3 | O4: =IF(stock!B25,"//","") -> // | Q4: A.7.3 | R4: =IF(stock!B29,"//","") -> // | S4: A.8.3 | T4: =IF(stock!B33,"//","") -> // | U4: A.9.3 | V4: =IF(stock!B37,"//","") -> // | Z4: B.9.3 | AA4: =IF(stock!B73,"//","") -> // | AB4: B.8.3 | AC4: =IF(stock!B69,"//","") -> // | AD4: B.7.3 | AE4: =IF(stock!B65,"//","") -> // | AG4: B.6.3 | AH4: =IF(stock!B61,"//","") -> // | AI4: B.5.3 | AJ4: =IF(stock!B57,"//","") -> // | AK4: B.4.3 | AL4: =IF(stock!B53,"//","") -> // | AN4: B.3.3 | AO4: =IF(stock!B49,"//","") ->  | AP4: B.2.3 | AQ4: =IF(stock!B45,"//","") -> // | AR4: B.1.3 | AS4: =IF(stock!B41,"//","") ->  | AW4: C.1.3 | AX4: =IF(stock!B77,"//","") ->  | AY4: C.2.3 | AZ4: =IF(stock!B81,"//","") ->  | BA4: C.3.3 | BB4: =IF(stock!B85,"//","") ->  | BD4: C.4.3 | BE4: =IF(stock!B89,"//","") ->  | BF4: C.5.3 | BG4: =IF(stock!B93,"//","") ->  | BH4: C.6.3 | BI4: =IF(stock!B97,"//","") ->  | BK4: C.7.3 | BL4: =IF(stock!B101,"//","") -> // | BM4: C.8.3 | BN4: =IF(stock!B105,"//","") -> // | BO4: C.9.3 | BP4: =IF(stock!B109,"//","") -> 
C6: A.1.2 | D6: =IF(stock!B4,"//","") -> // | E6: A.2.2 | F6: =IF(stock!B8,"//","") ->  | G6: A.3.2 | H6: =IF(stock!B12,"//","") -> // | J6: A.4.2 | K6: =IF(stock!B16,"//","") -> // | L6: A.5.2 | M6: =IF(stock!B20,"//","") -> // | N6: A.6.2 | O6: =IF(stock!B24,"//","") -> // | Q6: A.7.2 | R6: =IF(stock!B28,"//","") -> // | S6: A.8.2 | T6: =IF(stock!B32,"//","") -> // | U6: A.9.2 | V6: =IF(stock!B36,"//","") -> // | Z6: B.9.2 | AA6: =IF(stock!B72,"//","") -> // | AB6: B.8.2 | AC6: =IF(stock!B68,"//","") -> // | AD6: B.7.2 | AE6: =IF(stock!B64,"//","") -> // | AG6: B.6.2 | AH6: =IF(stock!B60,"//","") -> // | AI6: B.5.2 | AJ6: =IF(stock!B56,"//","") -> // | AK6: B.4.2 | AL6: =IF(stock!B52,"//","") -> // | AN6: B.3.2 | AO6: =IF(stock!B48,"//","") -> // | AP6: B.2.2 | AQ6: =IF(stock!B44,"//","") -> // | AR6: B.1.2 | AS6: =IF(stock!B40,"//","") ->  | AW6: C.1.2 | AX6: =IF(stock!B76,"//","") ->  | AY6: C.2.2 | AZ6: =IF(stock!B80,"//","") ->  | BA6: C.3.2 | BB6: =IF(stock!B84,"//","") ->  | BD6: C.4.2 | BE6: =IF(stock!B88,"//","") ->  | BF6: C.5.2 | BG6: =IF(stock!B92,"//","") ->  | BH6: C.6.2 | BI6: =IF(stock!B96,"//","") ->  | BK6: C.7.2 | BL6: =IF(stock!B100,"//","") ->  | BM6: C.8.2 | BN6: =IF(stock!B104,"//","") -> // | BO6: C.9.2 | BP6: =IF(stock!B108,"//","") -> //
C8: A.1.1 | D8: =IF(stock!B3,"//","") -> // | E8: A.2.1 | F8: =IF(stock!B7,"//","") ->  | G8: A.3.1 | H8: =IF(stock!B11,"//","") ->  | J8: A.4.1 | K8: =IF(stock!B15,"//","") -> // | L8: A.5.1 | M8: =IF(stock!B19,"//","") ->  | N8: A.6.1 | O8: =IF(stock!B23,"//","") -> // | Q8: A.7.1 | R8: =IF(stock!B27,"//","") -> // | S8: A.8.1 | T8: =IF(stock!B31,"//","") -> // | U8: A.9.1 | V8: =IF(stock!B35,"//","") -> // | Z8: B.9.1 | AA8: =IF(stock!B71,"//","") -> // | AB8: B.8.1 | AC8: =IF(stock!B67,"//","") -> // | AD8: B.7.1 | AE8: =IF(stock!B63,"//","") ->  | AG8: B.6.1 | AH8: =IF(stock!B59,"//","") -> // | AI8: B.5.1 | AJ8: =IF(stock!B55,"//","") ->  | AK8: B.4.1 | AL8: =IF(stock!B51,"//","") -> // | AN8: B.3.1 | AO8: =IF(stock!B47,"//","") -> // | AP8: B.2.1 | AQ8: =IF(stock!B43,"//","") ->  | AR8: B.1.1 | AS8: =IF(stock!B39,"//","") ->  | AW8: C.1.1 | AX8: =IF(stock!B75,"//","") -> // | AY8: C.2.1 | AZ8: =IF(stock!B79,"//","") ->  | BA8: C.3.1 | BB8: =IF(stock!B83,"//","") ->  | BD8: C.4.1 | BE8: =IF(stock!B87,"//","") ->  | BF8: C.5.1 | BG8: =IF(stock!B91,"//","") ->  | BH8: C.6.1 | BI8: =IF(stock!B95,"//","") ->  | BK8: C.7.1 | BL8: =IF(stock!B99,"//","") ->  | BM8: C.8.1 | BN8: =IF(stock!B103,"//","") -> // | BO8: C.9.1 | BP8: =IF(stock!B107,"//","") -> //
C10: A.1.0 | D10: =IF(stock!B2,"//","") -> // | E10: A.2.0 | F10: =IF(stock!B6,"//","") -> // | G10: A.3.0 | H10: =IF(stock!B10,"//","") ->  | J10: A.4.0 | K10: =IF(stock!B14,"//","") -> // | L10: A.5.0 | M10: =IF(stock!B18,"//","") ->  | N10: A.6.0 | O10: =IF(stock!B22,"//","") -> // | Q10: A.7.0 | R10: =IF(stock!B26,"//","") -> // | S10: A.8.0 | T10: =IF(stock!B30,"//","") -> // | U10: A.9.0 | V10: =IF(stock!B34,"//","") -> // | Z10: B.9.0 | AA10: =IF(stock!B70,"//","") -> // | AB10: B.8.0 | AC10: =IF(stock!B66,"//","") -> // | AD10: B.7.0 | AE10: =IF(stock!B62,"//","") -> // | AG10: B.6.0 | AH10: =IF(stock!B58,"//","") -> // | AI10: B.5.0 | AJ10: =IF(stock!B54,"//","") -> // | AK10: B.4.0 | AL10: =IF(stock!B50,"//","") -> // | AN10: B.3.0 | AO10: =IF(stock!B46,"//","") -> // | AP10: B.2.0 | AQ10: =IF(stock!B42,"//","") -> // | AR10: B.1.0 | AS10: =IF(stock!B38,"//","") -> // | AW10: C.1.0 | AX10: =IF(stock!B74,"//","") -> // | AY10: C.2.0 | AZ10: =IF(stock!B78,"//","") -> // | BA10: C.3.0 | BB10: =IF(stock!B82,"//","") -> // | BD10: C.4.0 | BE10: =IF(stock!B86,"//","") -> // | BF10: C.5.0 | BG10: =IF(stock!B90,"//","") -> // | BH10: C.6.0 | BI10: =IF(stock!B94,"//","") -> // | BK10: C.7.0 | BL10: =IF(stock!B98,"//","") -> // | BM10: C.8.0 | BN10: =IF(stock!B102,"//","") -> // | BO10: C.9.0 | BP10: =IF(stock!B106,"//","") -> //
C13: D | Z13: E | AW13: F
C15: D.9.3 | D15: =IF(stock!B145,"//","") ->  | E15: D.8.3 | F15: =IF(stock!B141,"//","") -> // | G15: D.7.3 | H15: =IF(stock!B137,"//","") ->  | J15: D.6.3 | K15: =IF(stock!B133,"//","") -> // | L15: D.5.3 | M15: =IF(stock!B129,"//","") -> // | N15: D.4.3 | O15: =IF(stock!B125,"//","") -> // | Q15: D.3.3 | R15: =IF(stock!B121,"//","") -> // | S15: D.2.3 | T15: =IF(stock!B117,"//","") ->  | U15: D.1.3 | V15: =IF(stock!B113,"//","") ->  | Z15: E.1.3 | AA15: =IF(stock!B149,"//","") -> // | AB15: E.2.3 | AC15: =IF(stock!B153,"//","") -> // | AD15: E.3.3 | AE15: =IF(stock!B157,"//","") -> // | AG15: E.4.3 | AH15: =IF(stock!B161,"//","") -> // | AI15: E.5.3 | AJ15: =IF(stock!B165,"//","") -> // | AK15: E.6.3 | AL15: =IF(stock!B169,"//","") -> // | AN15: E.7.3 | AO15: =IF(stock!B173,"//","") -> // | AP15: E.8.3 | AQ15: =IF(stock!B177,"//","") -> // | AR15: E.9.3 | AS15: =IF(stock!B181,"//","") -> // | AW15: F.9.3 | AX15: =IF(stock!B217,"//","") -> // | AY15: F.8.3 | AZ15: =IF(stock!B213,"//","") -> // | BA15: F.7.3 | BB15: =IF(stock!B209,"//","") -> // | BD15: F.6.3 | BE15: =IF(stock!B205,"//","") -> // | BF15: F.5.3 | BG15: =IF(stock!B201,"//","") -> // | BH15: F.4.3 | BI15: =IF(stock!B197,"//","") -> // | BK15: F.3.3 | BL15: =IF(stock!B193,"//","") -> // | BM15: F.2.3 | BN15: =IF(stock!B189,"//","") -> // | BO15: F.1.3 | BP15: =IF(stock!B185,"//","") -> //
C17: D.9.2 | D17: =IF(stock!B144,"//","") -> // | E17: D.8.2 | F17: =IF(stock!B140,"//","") -> // | G17: D.7.2 | H17: =IF(stock!B136,"//","") -> // | J17: D.6.2 | K17: =IF(stock!B132,"//","") ->  | L17: D.5.2 | M17: =IF(stock!B128,"//","") -> // | N17: D.4.2 | O17: =IF(stock!B124,"//","") -> // | Q17: D.3.2 | R17: =IF(stock!B120,"//","") -> // | S17: D.2.2 | T17: =IF(stock!B116,"//","") ->  | U17: D.1.2 | V17: =IF(stock!B112,"//","") ->  | Z17: E.1.2 | AA17: =IF(stock!B148,"//","") -> // | AB17: E.2.2 | AC17: =IF(stock!B152,"//","") -> // | AD17: E.3.2 | AE17: =IF(stock!B156,"//","") -> // | AG17: E.4.2 | AH17: =IF(stock!B160,"//","") -> // | AI17: E.5.2 | AJ17: =IF(stock!B164,"//","") -> // | AK17: E.6.2 | AL17: =IF(stock!B168,"//","") -> // | AN17: E.7.2 | AO17: =IF(stock!B172,"//","") -> // | AP17: E.8.2 | AQ17: =IF(stock!B176,"//","") -> // | AR17: E.9.2 | AS17: =IF(stock!B180,"//","") -> // | AW17: F.9.2 | AX17: =IF(stock!B216,"//","") -> // | AY17: F.8.2 | AZ17: =IF(stock!B212,"//","") -> // | BA17: F.7.2 | BB17: =IF(stock!B208,"//","") -> // | BD17: F.6.2 | BE17: =IF(stock!B204,"//","") -> // | BF17: F.5.2 | BG17: =IF(stock!B200,"//","") -> // | BH17: F.4.2 | BI17: =IF(stock!B196,"//","") -> // | BK17: F.3.2 | BL17: =IF(stock!B192,"//","") -> // | BM17: F.2.2 | BN17: =IF(stock!B188,"//","") -> // | BO17: F.1.2 | BP17: =IF(stock!B184,"//","") -> //
C19: D.9.1 | D19: =IF(stock!B143,"//","") -> // | E19: D.8.1 | F19: =IF(stock!B139,"//","") -> // | G19: D.7.1 | H19: =IF(stock!B135,"//","") -> // | J19: D.6.1 | K19: =IF(stock!B131,"//","") ->  | L19: D.5.1 | M19: =IF(stock!B127,"//","") -> // | N19: D.4.1 | O19: =IF(stock!B123,"//","") -> // | Q19: D.3.1 | R19: =IF(stock!B119,"//","") ->  | S19: D.2.1 | T19: =IF(stock!B115,"//","") ->  | U19: D.1.1 | V19: =IF(stock!B111,"//","") ->  | Z19: E.1.1 | AA19: =IF(stock!B147,"//","") -> // | AB19: E.2.1 | AC19: =IF(stock!B151,"//","") -> // | AD19: E.3.1 | AE19: =IF(stock!B155,"//","") -> // | AG19: E.4.1 | AH19: =IF(stock!B159,"//","") -> // | AI19: E.5.1 | AJ19: =IF(stock!B163,"//","") -> // | AK19: E.6.1 | AL19: =IF(stock!B167,"//","") -> // | AN19: E.7.1 | AO19: =IF(stock!B171,"//","") -> // | AP19: E.8.1 | AQ19: =IF(stock!B175,"//","") -> // | AR19: E.9.1 | AS19: =IF(stock!B179,"//","") -> // | AW19: F.9.1 | AX19: =IF(stock!B215,"//","") -> // | AY19: F.8.1 | AZ19: =IF(stock!B211,"//","") -> // | BA19: F.7.1 | BB19: =IF(stock!B207,"//","") -> // | BD19: F.6.1 | BE19: =IF(stock!B203,"//","") ->  | BF19: F.5.1 | BG19: =IF(stock!B199,"//","") -> // | BH19: F.4.1 | BI19: =IF(stock!B195,"//","") -> // | BK19: F.3.1 | BL19: =IF(stock!B191,"//","") ->  | BM19: F.2.1 | BN19: =IF(stock!B187,"//","") -> // | BO19: F.1.1 | BP19: =IF(stock!B183,"//","") -> //
C21: D.9.0 | D21: =IF(stock!B142,"//","") -> // | E21: D.8.0 | F21: =IF(stock!B138,"//","") -> // | G21: D.7.0 | H21: =IF(stock!B134,"//","") -> // | J21: D.6.0 | K21: =IF(stock!B130,"//","") -> // | L21: D.5.0 | M21: =IF(stock!B126,"//","") -> // | N21: D.4.0 | O21: =IF(stock!B122,"//","") -> // | Q21: D.3.0 | R21: =IF(stock!B118,"//","") ->  | S21: D.2.0 | T21: =IF(stock!B114,"//","") ->  | U21: D.1.0 | V21: =IF(stock!B110,"//","") -> // | Z21: E.1.0 | AA21: =IF(stock!B146,"//","") -> // | AB21: E.2.0 | AC21: =IF(stock!B150,"//","") -> // | AD21: E.3.0 | AE21: =IF(stock!B154,"//","") -> // | AG21: E.4.0 | AH21: =IF(stock!B158,"//","") -> // | AI21: E.5.0 | AJ21: =IF(stock!B162,"//","") -> // | AK21: E.6.0 | AL21: =IF(stock!B166,"//","") -> // | AN21: E.7.0 | AO21: =IF(stock!B170,"//","") -> // | AP21: E.8.0 | AQ21: =IF(stock!B174,"//","") -> // | AR21: E.9.0 | AS21: =IF(stock!B178,"//","") -> // | AW21: F.9.0 | AX21: =IF(stock!B214,"//","") -> // | AY21: F.8.0 | AZ21: =IF(stock!B210,"//","") -> // | BA21: F.7.0 | BB21: =IF(stock!B206,"//","") -> // | BD21: F.6.0 | BE21: =IF(stock!B202,"//","") -> // | BF21: F.5.0 | BG21: =IF(stock!B198,"//","") -> // | BH21: F.4.0 | BI21: =IF(stock!B194,"//","") -> // | BK21: F.3.0 | BL21: =IF(stock!B190,"//","") -> // | BM21: F.2.0 | BN21: =IF(stock!B186,"//","") -> // | BO21: F.1.0 | BP21: =IF(stock!B182,"//","") -> //
C24: G | Z24: H | AW24: I
C26: G.1.3 | D26: =IF(stock!B221,"//","") ->  | E26: G.2.3 | F26: =IF(stock!B225,"//","") ->  | G26: G.3.3 | H26: =IF(stock!B229,"//","") ->  | J26: G.4.3 | K26: =IF(stock!B233,"//","") ->  | L26: G.5.3 | M26: =IF(stock!B237,"//","") -> // | N26: G.6.3 | O26: =IF(stock!B239,"//","") -> // | Q26: G.7.3 | R26: =IF(stock!B245,"//","") ->  | S26: G.8.3 | T26: =IF(stock!B249,"//","") -> // | U26: G.9.3 | V26: =IF(stock!B253,"//","") -> // | Z26: H.9.3 | AA26: =IF(stock!B289,"//","") -> // | AB26: H.8.3 | AC26: =IF(stock!B285,"//","") -> // | AD26: H.7.3 | AE26: =IF(stock!B281,"//","") -> // | AG26: H.6.3 | AH26: =IF(stock!B277,"//","") -> // | AI26: H.5.3 | AJ26: =IF(stock!B273,"//","") ->  | AK26: H.4.3 | AL26: =IF(stock!B269,"//","") ->  | AN26: H.3.3 | AO26: =IF(stock!B265,"//","") -> // | AP26: H.2.3 | AQ26: =IF(stock!B261,"//","") -> // | AR26: H.1.3 | AS26: =IF(stock!B257,"//","") ->  | AW26: I.1.3 | AX26: =IF(stock!B293,"//","") -> // | AY26: I2.3 | AZ26: =IF(stock!B297,"//","") -> // | BA26: I.3.3 | BB26: =IF(stock!B301,"//","") -> // | BD26: I.4.3 | BE26: =IF(stock!B305,"//","") -> // | BF26: I.5.3 | BG26: =IF(stock!B309,"//","") -> // | BH26: I.6.3 | BI26: =IF(stock!B313,"//","") ->  | BK26: I.7.3 | BL26: =IF(stock!B317,"//","") -> // | BM26: I.8.3 | BN26: =IF(stock!B321,"//","") -> // | BO26: I.9.3 | BP26: =IF(stock!B325,"//","") -> //
C28: G.1.2 | D28: =IF(stock!B220,"//","") ->  | E28: G.2.2 | F28: =IF(stock!B224,"//","") ->  | G28: G.3.2 | H28: =IF(stock!B228,"//","") ->  | J28: G.4.2 | K28: =IF(stock!B232,"//","") ->  | L28: G.5.2 | M28: =IF(stock!B236,"//","") -> // | N28: G.6.2 | O28: =IF(stock!B238,"//","") -> // | Q28: G.7.2 | R28: =IF(stock!B244,"//","") ->  | S28: G.8.2 | T28: =IF(stock!B248,"//","") -> // | U28: G.9.2 | V28: =IF(stock!B252,"//","") -> // | Z28: H.9.2 | AA28: =IF(stock!B288,"//","") -> // | AB28: H.8.2 | AC28: =IF(stock!B284,"//","") -> // | AD28: H.7.2 | AE28: =IF(stock!B280,"//","") -> // | AG28: H.6.2 | AH28: =IF(stock!B276,"//","") -> // | AI28: H.5.2 | AJ28: =IF(stock!B272,"//","") ->  | AK28: H.4.2 | AL28: =IF(stock!B268,"//","") ->  | AN28: H.3.2 | AO28: =IF(stock!B264,"//","") -> // | AP28: H.2.2 | AQ28: =IF(stock!B260,"//","") -> // | AR28: H.1.2 | AS28: =IF(stock!B256,"//","") ->  | AW28: I.1.2 | AX28: =IF(stock!B292,"//","") -> // | AY28: I.2.2 | AZ28: =IF(stock!B296,"//","") -> // | BA28: I.3.2 | BB28: =IF(stock!B300,"//","") -> // | BD28: I.4.2 | BE28: =IF(stock!B304,"//","") -> // | BF28: I.5.2 | BG28: =IF(stock!B308,"//","") -> // | BH28: I.6.2 | BI28: =IF(stock!B312,"//","") ->  | BK28: I.7.2 | BL28: =IF(stock!B316,"//","") -> // | BM28: I.8.2 | BN28: =IF(stock!B320,"//","") -> // | BO28: I.9.2 | BP28: =IF(stock!B324,"//","") -> //
C30: G.1.1 | D30: =IF(stock!B219,"//","") ->  | E30: G.2.1 | F30: =IF(stock!B223,"//","") ->  | G30: G.3.1 | H30: =IF(stock!B227,"//","") ->  | J30: G.4.1 | K30: =IF(stock!B231,"//","") ->  | L30: G.5.1 | M30: =IF(stock!B235,"//","") -> // | N30: G.6.1 | O30: =IF(stock!B237,"//","") -> // | Q30: G.7.1 | R30: =IF(stock!B243,"//","") ->  | S30: G.8.1 | T30: =IF(stock!B247,"//","") -> // | U30: G.9.1 | V30: =IF(stock!B251,"//","") -> // | Z30: H.9.1 | AA30: =IF(stock!B287,"//","") -> // | AB30: H.8.1 | AC30: =IF(stock!B283,"//","") -> // | AD30: H.7.1 | AE30: =IF(stock!B279,"//","") -> // | AG30: H.6.1 | AH30: =IF(stock!B275,"//","") -> // | AI30: H.5.1 | AJ30: =IF(stock!B271,"//","") ->  | AK30: H.4.1 | AL30: =IF(stock!B267,"//","") ->  | AN30: H.3.1 | AO30: =IF(stock!B263,"//","") -> // | AP30: H.2.1 | AQ30: =IF(stock!B259,"//","") ->  | AR30: H.1.1 | AS30: =IF(stock!B255,"//","") ->  | AW30: I.1.1 | AX30: =IF(stock!B291,"//","") ->  | AY30: I.2.1 | AZ30: =IF(stock!B295,"//","") -> // | BA30: I.3.1 | BB30: =IF(stock!B299,"//","") -> // | BD30: I.4.1 | BE30: =IF(stock!B303,"//","") -> // | BF30: I.5.1 | BG30: =IF(stock!B307,"//","") -> // | BH30: I.6.1 | BI30: =IF(stock!B311,"//","") ->  | BK30: I.7.1 | BL30: =IF(stock!B315,"//","") -> // | BM30: I.8.1 | BN30: =IF(stock!B319,"//","") ->  | BO30: I.9.1 | BP30: =IF(stock!B323,"//","") -> //
C32: G.1.0 | D32: =IF(stock!B218,"//","") -> // | E32: G.2.0 | F32: =IF(stock!B222,"//","") -> // | G32: G.3.0 | H32: =IF(stock!B226,"//","") ->  | J32: G.4.0 | K32: =IF(stock!B230,"//","") ->  | L32: G.5.0 | M32: =IF(stock!B234,"//","") ->  | N32: G.6.0 | O32: =IF(stock!B238,"//","") -> // | Q32: G.7.0 | R32: =IF(stock!B242,"//","") ->  | S32: G.8.0 | T32: =IF(stock!B246,"//","") -> // | U32: G.9.0 | V32: =IF(stock!B250,"//","") ->  | Z32: H.9.0 | AA32: =IF(stock!B286,"//","") ->  | AB32: H.8.0 | AC32: =IF(stock!B282,"//","") -> // | AD32: H.7.0 | AE32: =IF(stock!B278,"//","") -> // | AG32: H.6.0 | AH32: =IF(stock!B274,"//","") -> // | AI32: H.5.0 | AJ32: =IF(stock!B270,"//","") -> // | AK32: H.4.0 | AL32: =IF(stock!B266,"//","") -> // | AN32: H.3.0 | AO32: =IF(stock!B262,"//","") -> // | AP32: H.2.0 | AQ32: =IF(stock!B258,"//","") -> // | AR32: H.1.0 | AS32: =IF(stock!B254,"//","") -> // | AW32: I.1.0 | AX32: =IF(stock!B290,"//","") ->  | AY32: I.2.0 | AZ32: =IF(stock!B294,"//","") -> // | BA32: I.3.0 | BB32: =IF(stock!B298,"//","") ->  | BD32: I.4.0 | BE32: =IF(stock!B302,"//","") ->  | BF32: I.5.0 | BG32: =IF(stock!B306,"//","") -> // | BH32: I.6.0 | BI32: =IF(stock!B310,"//","") ->  | BK32: I.7.0 | BL32: =IF(stock!B314,"//","") -> // | BM32: I.8.0 | BN32: =IF(stock!B318,"//","") ->  | BO32: I.9.0 | BP32: =IF(stock!B322,"//","") -> //
C38: R.1x24 | D38: =IF(stock!B326,"//","") -> // | G38: R.2x24 | H38: =IF(stock!B327,"//","") -> // | J38: R.3x32 | K38: =IF(stock!B328,"//","") -> // | N38: R.4x32 | O38: =IF(stock!B329,"//","") -> // | Q38: R.5x32 | R38: =IF(stock!B330,"//","") -> // | U38: R.6x32 | V38: =IF(stock!B331,"//","") -> // | Z38: R.7x32 | AA38: =IF(stock!B332,"//","") -> // | AD38: R.8x32 | AE38: =IF(stock!B333,"//","") -> // | AG38: R.9x32 | AH38: =IF(stock!B334,"//","") -> // | AK38: R.10x32 | AL38: =IF(stock!B335,"//","") -> // | AN38: R.11x32 | AO38: =IF(stock!B336,"//","") ->  | AR38: R.12x32 | AS38: =IF(stock!B337,"//","") -> // | AW38: R.13x32 | AX38: =IF(stock!B338,"//","") -> // | BA38: R.14x32 | BB38: =IF(stock!B339,"//","") -> // | BD38: R.15x32 | BE38: =IF(stock!B340,"//","") -> // | BH38: R.16x32 | BI38: =IF(stock!B341,"//","") ->  | BK38: R.17x32 | BL38: =IF(stock!B342,"//","") -> // | BO38: R.18x32 | BP38: =IF(stock!B343,"//","") -> //
C43: R.19x24 | D43: =IF(stock!B344,"//","") -> // | G43: R.20x24 | H43: =IF(stock!B345,"//","") -> // | J43: R.21x32 | K43: =IF(stock!B346,"//","") ->  | N43: R.22x32 | O43: =IF(stock!B347,"//","") -> // | Q43: R.23x32 | R43: =IF(stock!B348,"//","") -> // | U43: R.24x32 | V43: =IF(stock!B349,"//","") -> // | Z43: R.25x32 | AA43: =IF(stock!B350,"//","") -> // | AD43: R.26x32 | AE43: =IF(stock!B351,"//","") -> // | AG43: R.27x32 | AH43: =IF(stock!B352,"//","") -> // | AK43: R.28x32 | AL43: =IF(stock!B353,"//","") -> // | AN43: R.29x32 | AO43: =IF(stock!B354,"//","") ->  | AR43: R.30x32 | AS43: =IF(stock!B355,"//","") -> // | AW43: R.31x32 | AX43: =IF(stock!B356,"//","") ->  | BA43: R.32x32 | BB43: =IF(stock!B357,"//","") -> // | BD43: R.33x32 | BE43: =IF(stock!B358,"//","") -> // | BH43: R.34x32 | BI43: =IF(stock!B359,"//","") -> // | BK43: R.35x32 | BL43: =IF(stock!B360,"//","") -> // | BO43: R.36x32 | BP43: =IF(stock!B361,"//","") -> //
C48: R.37x24 | D48: =IF(stock!B362,"//","") -> // | G48: R.38x24 | H48: =IF(stock!B363,"//","") -> // | J48: R.39x32 | K48: =IF(stock!B364,"//","") -> // | N48: R.40x32 | O48: =IF(stock!B365,"//","") ->  | Q48: R.41x32 | R48: =IF(stock!B366,"//","") -> 

Sheet Feuil6
A1: Historique D'inventaire | L1: Causes modification
A2: Date | B2: Heure | C2: Initiales | D2: Action | E2: 1 | F2: Référence | G2: Produit | H2: Code | I2: Date Péremp. | J2: Qté palettes | K2: Qté Produit | L2: 1 | M2: 2 | N2: 3 | O2: 4 | P2: 5 | Q2: 6 | R2: 7
T5: Les modification | V5: Les causes
T6: 1 | U6: Modif. Quantité + | V6: Correction de la quantité, en +
T7: 2 | U7: Modif. Quantité - | V7: Correction de la quantité, en -
T8: 3 | U8: Modif. Date | V8: Correction de la date
T9: 4 | U9: Modif. De référence | V9: Correction de référence
T10: 5 | U10: Modif. Code | V10: Correction du code
T11: 6 | U11: Autres | V11: Empl.vide…
T12: 7 | U12: Inventaire OK | V12: R.A.S

Sheet InvenT
A1: Inventaire total
A2: L | B2: Référence | C2: Produit | D2: Code | E2: Date péremption | F2: Palettes | G2: Qté. Colis
A3: 1 | B3: 3 | C3: biscottes | D3: 314 | E3: 2017-01-09 | F3: 2p | G3: 96
A4: 2 | B4: 3 | C4: biscottes | D4: 289 | E4: 2016-12-15 | F4: 2p | G4: 96
A5: 3 | B5: 3 | C5: biscottes | D5: 284 | E5: 2016-12-10 | F5: 5p | G5: 240
A6: 4 | B6: 3 | C6: biscottes | D6: 291 | E6: 2016-12-17 | F6: 1p | G6: 48
A7: 5 | B7: 31 | C7: abricot 1 kg | D7: 250 | E7: 2016-11-06 | F7: 4p | G7: 200
A8: 6 | B8: 31 | C8: abricot 1 kg | D8: 252 | E8: 2016-11-08 | F8: 2p | G8: 72
A9: 7
A10: 8
A11: 9
A12: 10
A13: 11
A14: 12
A15: 13
A16: 14
A17: 15
A18: 16
A19: 17
A20: 18
A21: 19
A22: 20
A23: 21
A24: 22
A25: 23
A26: 24
A27: 25
A28: 26
A29: 27
A30: 28
A31: 29
A32: 30
A33: 31
A34: 32
A35: 33
A36: 34
A37: 35
A38: 36
A39: 37
A40: 38
A41: 39
A42: 40
A43: 41
A44: 42
A45: 43
A46: 44
A47: 45
A48: 46
A49: 47
A50: 48
A51: 49
A52: 50
A53: 51
A54: 52
A55: 53
A56: 54
A57: 55
A58: 56
A59: 57
A60: 58
A61: 59
A62: 60
A63: 61
A64: 62
A65: 63
A66: 64
A67: 65
A68: 66
A69: 67
A70: 68
A71: 69
A72: 70
A73: 71
A74: 72
A75: 73
A76: 74
A77: 75
A78: 76
A79: 77
A80: 78
A81: 79
A82: 80
A83: 81
A84: 82
A85: 83
A86: 84
A87: 85
A88: 86
A89: 87
